fUST/lending_fUST_20251229
["ID","MTS","AMOUNT","RATE_DAILY","PERIOD"]
[399973864,1766959841182,-420.0,0.00014548,2]
[399973866,1766959841192,-915.0,0.00014596,2]
[399973868,1766959841202,-177.0,0.00015271,2]
[399973870,1766959841212,-758.35753728,0.00015752,2]
[399973872,1766959841223,-529.0,0.0001595,2]
[399973874,1766959841233,-204.0,0.00017271,2]
[399973876,1766959841244,-461.67526834,0.00017866,2]
[399973878,1766959841254,-151.0,0.00017866,2]
[399973880,1766959841264,-500.0,0.00017866,2]
[399973882,1766959841274,-500.0,0.00017866,2]
[399973885,1766959841284,-500.0,0.00017866,2]
[399973887,1766959841294,-500.0,0.00017866,2]
[399973889,1766959841304,-1000.0,0.00017866,2]
[399973891,1766959841313,-390.71439394,0.00017866,2]
[399973893,1766959841323,-12.67237589,0.00017866,2]
[399973895,1766959841336,-987.32762411,0.00017866,2]
[399973897,1766959841347,-1000.0,0.00017866,2]
[399973899,1766959841356,-1000.0,0.00017866,2]
[399973901,1766959841366,-1490.35436238,0.00017866,2]
[399973903,1766959841376,-185.19777181,0.00017866,2]
[399973905,1766959841386,-168.3888056,0.00017866,2]
[399973907,1766959841396,-963.01602271,0.00018361,3]
[399973910,1766959841408,-30592.90438003,0.00018361,3]
[399974077,1766959845722,-335.13394028,0.00018361,3]
[399974090,1766959846337,-7133.28565701,0.00018361,3]
[399974091,1766959846347,-478.75725327,0.00018414,2]
[399974092,1766959846359,-154.51578537,0.00018414,2]
[399974093,1766959846371,-174.61919141,0.00018414,2]
[399974094,1766959846380,-336.62507117,0.00018461,2]
[399974095,1766959846390,-336.62507117,0.00018496,2]
[399974096,1766959846399,-336.62507117,0.00018531,2]
[399974097,1766959846409,-336.62507117,0.00018566,2]
[399974098,1766959846418,-10000.0,0.000186,2]
[399974099,1766959846428,-25.50669684,0.00018601,2]
[399974100,1766959846440,-311.11837433,0.00018601,2]
[399974101,1766959846453,-157.7,0.0001864,3]
[399974102,1766959846462,-473.1,0.0001864,3]
[399974103,1766959846472,-480.34,0.00018651,3]
[399974104,1766959846481,-630.8,0.00018651,3]
[399974105,1766959846491,-315.4,0.00018651,3]
[399974106,1766959846500,-613.1,0.0001866,2]
[399974107,1766959846510,-613.1,0.0001866,2]
[399974108,1766959846519,-613.1,0.0001866,2]
[399974109,1766959846528,-613.1,0.0001866,2]
[399974110,1766959846538,-613.1,0.0001866,2]
[399974111,1766959846547,-613.1,0.0001866,2]
[399974112,1766959846557,-613.1,0.0001866,2]
[399974113,1766959846567,-613.1,0.0001866,2]
[399974114,1766959846577,-613.1,0.0001866,2]
[399974115,1766959846587,-613.1,0.0001866,2]
[399974116,1766959846597,-613.1,0.0001866,2]
[399974117,1766959846607,-613.1,0.0001866,2]
[399974118,1766959846617,-613.1,0.0001866,2]
[399974119,1766959846627,-613.1,0.0001866,2]
[399974120,1766959846639,-613.1,0.0001866,2]
[399974121,1766959846648,-613.1,0.0001866,2]
[399974122,1766959846660,-613.1,0.0001866,2]
[399974123,1766959846670,-613.1,0.0001866,2]
[399974124,1766959846679,-613.1,0.0001866,2]
[399974125,1766959846690,-613.1,0.0001866,2]
[399974126,1766959846700,-613.31328887,0.0001866,2]
[399974127,1766959846709,-25669.12838162,0.00018661,2]
[399974340,1766960608122,1104.15488176,0.00012717,2]
[399974341,1766960608144,421.17062634,0.00012717,2]
[399974363,1766960711670,5000.0,0.00013172,2]
[399974367,1766960763664,150.0,8.499e-05,2]
[399974368,1766960764065,150.0,9.272e-05,2]
[399974377,1766960828268,150.0,7.477e-05,2]
[399974378,1766960828611,150.0,8.156e-05,2]
[399974402,1766960880237,1716.0,0.00028767,120]
[399974428,1766960973386,8464.2694132,0.00012538,2]
[399974455,1766961032273,-156.0,0.00013272,2]
[399974456,1766961032283,-300.0,0.00013272,2]
[399974457,1766961032294,-194.02727789,0.00013272,2]
[399974459,1766961032334,-83.97272211,0.00013272,2]
[399974460,1766961032343,-608.0,0.00013272,2]
[399974461,1766961032352,-150.0,0.00013272,2]
[399974462,1766961032362,-990.5937786,0.00013272,25]
[399974463,1766961032371,-500.0,0.00013273,2]
[399974464,1766961032380,-500.0,0.00013273,2]
[399974465,1766961032389,-500.0,0.00013273,2]
[399974466,1766961032398,-500.0,0.00013273,2]
[399974468,1766961032407,-500.0,0.00013273,2]
[399974470,1766961032417,-500.0,0.00013273,2]
[399974471,1766961032426,-500.0,0.00013273,2]
[399974472,1766961032435,-420.23192091,0.00013273,2]
[399974473,1766961032444,-500.0,0.00013273,2]
[399974474,1766961032452,-500.0,0.00013273,2]
[399974475,1766961032461,-500.0,0.00013273,2]
[399974476,1766961032471,-500.0,0.00013273,2]
[399974477,1766961032480,-500.0,0.00013273,2]
[399974478,1766961032489,-500.0,0.00013273,2]
[399974479,1766961032499,-500.0,0.00013273,2]
[399974480,1766961032508,-500.0,0.00013273,2]
[399974481,1766961032517,-200.0,0.00013425,2]
[399974483,1766961032527,-500.0,0.00013425,2]
[399974484,1766961032536,-500.0,0.00013425,2]
[399974485,1766961032545,-500.0,0.00013425,2]
[399974486,1766961032555,-150.0,0.00013425,2]
[399974487,1766961032564,-500.0,0.00013562,2]
[399974488,1766961032574,-500.0,0.00013562,2]
[399974489,1766961032583,-500.0,0.00013562,2]
[399974490,1766961032593,-293.98174318,0.00013562,2]
[399974491,1766961032602,-186.29158513,0.00013597,2]
[399974492,1766961032611,-300.0,0.00013673,2]
[399974493,1766961032620,-569.04845387,0.00013697,2]
[399974494,1766961032629,-285.29047395,0.00013697,2]
[399974496,1766961032641,-214.70952605,0.00013697,2]
[399974497,1766961032650,-569.04845387,0.00013697,2]
[399974498,1766961032659,-231.01243985,0.00013697,2]
[399974499,1766961032668,-569.04845387,0.00013697,2]
[399974500,1766961032682,-569.04845387,0.00013697,2]
[399974501,1766961032692,-569.04845387,0.00013697,2]
[399974502,1766961032702,-569.04845387,0.00013697,2]
[399974503,1766961032711,-569.04845387,0.00013697,2]
[399974504,1766961032720,-569.04845387,0.00013697,2]
[399974505,1766961032729,-569.04845387,0.00013697,2]
[399974506,1766961032738,-569.04845387,0.00013697,2]
[399974507,1766961032747,-569.04845387,0.00013697,2]
[399974508,1766961032756,-569.04845387,0.00013697,2]
[399974509,1766961032765,-569.04845387,0.00013697,2]
[399974510,1766961032775,-569.04845387,0.00013697,2]
[399974511,1766961032784,-569.04845387,0.00013697,2]
[399974512,1766961032793,-569.04845387,0.00013697,2]
[399974513,1766961032802,-569.04845387,0.00013697,2]
[399974514,1766961032811,-569.04845387,0.00013697,2]
[399974515,1766961032820,-569.04845387,0.00013697,2]
[399974516,1766961032830,-569.04845387,0.00013697,2]
[399974517,1766961032839,-569.04845387,0.00013697,2]
[399974518,1766961032848,-529.60895672,0.00013697,2]
[399974519,1766961032859,-82.11813119,0.00013697,2]
[399974520,1766961032869,-611.72708791,0.00013697,2]
[399974521,1766961032878,-611.72708791,0.00013697,2]
[399974522,1766961032887,-611.72708791,0.00013697,2]
[399974523,1766961032896,-611.72708791,0.00013697,2]
[399974524,1766961032905,-611.72708791,0.00013697,2]
[399974525,1766961032915,-611.72708791,0.00013697,2]
[399974526,1766961032925,-611.72708791,0.00013697,2]
[399974527,1766961032935,-631.46021977,0.00013697,2]
[399974528,1766961032945,-631.46021977,0.00013697,2]
[399974529,1766961032956,-500.0,0.00013699,2]
[399974530,1766961032966,-500.0,0.00013699,2]
[399974531,1766961032976,-500.0,0.00013699,2]
[399974532,1766961032985,-500.0,0.00013699,2]
[399974533,1766961032995,-500.0,0.00013699,2]
[399974534,1766961033004,-400.61762715,0.00013699,2]
[399974535,1766961033013,-613.59715472,0.00013699,2]
[399974536,1766961033023,-500.0,0.00013699,2]
[399974537,1766961033032,-500.0,0.00013699,2]
[399974538,1766961033041,-500.0,0.00013699,2]
[399974539,1766961033051,-500.0,0.00013699,2]
[399974540,1766961033060,-500.0,0.00013699,2]
[399974541,1766961033070,-500.0,0.00013699,2]
[399974542,1766961033079,-500.0,0.00013699,2]
[399974543,1766961033087,-500.66316027,0.00013699,2]
[399974544,1766961033096,-500.0,0.00013699,2]
[399974545,1766961033105,-500.0,0.00013699,2]
[399974546,1766961033114,-500.0,0.00013699,2]
[399974547,1766961033123,-500.0,0.00013699,2]
[399974548,1766961033132,-500.0,0.00013699,2]
[399974549,1766961033141,-500.0,0.00013699,2]
[399974550,1766961033151,-500.0,0.00013699,2]
[399974551,1766961033160,-500.0,0.00013699,2]
[399974552,1766961033169,-500.0,0.00013699,2]
[399974553,1766961033177,-500.17663948,0.00013699,2]
[399974554,1766961033187,-163.59360218,0.00013699,2]
[399974555,1766961033196,-253.84004691,0.00013699,2]
[399974556,1766961033205,-440.83623024,0.00013699,2]
[399974557,1766961033215,-500.0,0.00013699,2]
[399974558,1766961033224,-500.0,0.00013699,2]
[399974559,1766961033233,-500.0,0.00013699,2]
[399974560,1766961033242,-500.0,0.00013699,2]
[399974561,1766961033251,-500.0,0.00013699,2]
[399974562,1766961033261,-500.0,0.00013699,2]
[399974563,1766961033270,-500.0,0.00013699,2]
[399974564,1766961033279,-500.0,0.00013699,2]
[399974565,1766961033288,-500.0,0.00013699,2]
[399974566,1766961033298,-500.0,0.00013699,2]
[399974567,1766961033308,-500.0,0.00013699,2]
[399974568,1766961033317,-500.20542431,0.00013699,2]
[399974569,1766961033327,-500.0,0.00013699,2]
[399974570,1766961033337,-500.0,0.00013699,2]
[399974571,1766961033347,-500.0,0.00013699,2]
[399974572,1766961033357,-500.0,0.00013699,2]
[399974573,1766961033366,-500.0,0.00013699,2]
[399974574,1766961033375,-500.0,0.00013699,2]
[399974575,1766961033384,-215.93776272,0.00013699,2]
[399974595,1766961038320,-284.06223728,0.00013699,2]
[399974596,1766961038332,-500.0,0.00013699,2]
[399974597,1766961038343,-500.0,0.00013699,2]
[399974598,1766961038355,-500.0,0.00013699,2]
[399974599,1766961038367,-500.0,0.00013699,2]
[399974600,1766961038380,-500.0,0.00013699,2]
[399974601,1766961038390,-500.0,0.00013699,2]
[399974602,1766961038406,-500.0,0.00013699,2]
[399974603,1766961038416,-500.0,0.00013699,2]
[399974604,1766961038426,-500.0,0.00013699,2]
[399974605,1766961038436,-1000.0,0.00013821,2]
[399974606,1766961038447,-1000.0,0.00013821,2]
[399974607,1766961038457,-1000.0,0.00013821,2]
[399974608,1766961038468,-1000.0,0.00013821,2]
[399974609,1766961038479,-1000.0,0.00013821,2]
[399974610,1766961038491,-1000.0,0.00013821,2]
[399974611,1766961038502,-1000.0,0.00013821,2]
[399974612,1766961038514,-1000.0,0.00013821,2]
[399974613,1766961038524,-1000.0,0.00013821,2]
[399974614,1766961038534,-1000.0,0.00013821,2]
[399974615,1766961038544,-1000.0,0.00013821,2]
[399974616,1766961038555,-198.76179239,0.00013821,2]
[399974617,1766961038568,-801.23820761,0.00013821,2]
[399974618,1766961038578,-1000.0,0.00013821,2]
[399974619,1766961038588,-1000.0,0.00013821,2]
[399974620,1766961038600,-1000.0,0.00013821,2]
[399974621,1766961038610,-500.0,0.00013836,2]
[399974622,1766961038620,-484.09087641,0.00013836,2]
[399974623,1766961038632,-15.90912359,0.00013836,2]
[399974624,1766961038643,-500.0,0.00013836,2]
[399974625,1766961038653,-71.97777204,0.00013973,2]
[399974636,1766961040624,-511.7087079,0.00013696,2]
[399974637,1766961040635,-500.0,0.00013696,2]
[399974638,1766961040646,-500.0,0.00013696,2]
[399974639,1766961040657,-284.14267675,0.00013696,2]
[399974640,1766961040669,-215.85732325,0.00013696,2]
[399974641,1766961040683,-500.0,0.00013696,2]
[399974642,1766961040693,-403.64809682,0.00013696,2]
[399974643,1766961040710,-96.35190318,0.00013696,2]
[399974644,1766961040720,-639.42721387,0.00013696,2]
[399974645,1766961040730,-500.0,0.00013696,2]
[399974646,1766961040740,-500.0,0.00013696,2]
[399974647,1766961040753,-500.0,0.00013696,2]
[399974648,1766961040763,-216.74646822,0.00013973,2]
[399974649,1766961040773,-462.74105409,0.00013973,2]
[399974650,1766961040783,-500.0,0.00013973,2]
[399974651,1766961040794,-503.0,0.0001411,2]
[399974652,1766961040804,-600.0,0.00014221,2]
[399974654,1766961040815,-1000.0,0.00014247,2]
[399974655,1766961040826,-1000.0,0.00014247,2]
[399974656,1766961040836,-1000.0,0.00014247,2]
[399974657,1766961040847,-1000.0,0.00014247,2]
[399974658,1766961040858,-1000.0,0.00014247,2]
[399974659,1766961040868,-1000.67462727,0.00014247,2]
[399974660,1766961040878,-1000.0,0.00014247,2]
[399974661,1766961040889,-1000.0,0.00014247,2]
[399974662,1766961040899,-1000.0,0.00014247,2]
[399974663,1766961040910,-1000.0,0.00014247,2]
[399974664,1766961040920,-1076.80270407,0.00014247,2]
[399974665,1766961040930,-1000.0,0.00014247,2]
[399974666,1766961040941,-1000.0,0.00014247,2]
[399974667,1766961040951,-424.28409043,0.00014247,2]
[399974668,1766961040961,-1000.0,0.00014247,2]
[399974669,1766961040972,-688.443821,0.00014247,2]
[399974670,1766961040983,-1000.0,0.00014247,2]
[399974671,1766961040994,-1000.0,0.00014247,2]
[399974672,1766961041004,-1000.0,0.00014247,2]
[399974673,1766961041014,-1000.0,0.00014247,2]
[399974674,1766961041024,-1000.0,0.00014247,2]
[399974675,1766961041035,-1000.0,0.00014247,2]
[399974676,1766961041045,-1000.0,0.00014247,2]
[399974677,1766961041055,-1000.0,0.00014247,2]
[399974678,1766961041066,-1000.0,0.00014247,2]
[399974679,1766961041076,-1000.0,0.00014247,2]
[399974680,1766961041087,-1000.0,0.00014247,2]
[399974681,1766961041098,-1000.0,0.00014247,2]
[399974682,1766961041109,-841.49087632,0.00014247,2]
[399974683,1766961041119,-1000.0,0.00014247,2]
[399974684,1766961041130,-1000.0,0.00014247,2]
[399974685,1766961041141,-1000.0,0.00014247,2]
[399974687,1766961041151,-1000.0,0.00014247,2]
[399974688,1766961041162,-640.55121323,0.00014247,2]
[399974691,1766961041173,-559.13582735,0.00014247,2]
[399974693,1766961041187,-440.86417265,0.00014247,2]
[399974695,1766961041197,-1000.0,0.00014247,2]
[399974697,1766961041207,-1000.0,0.00014247,2]
[399974700,1766961041217,-1000.0,0.00014247,2]
[399974702,1766961041227,-1000.0,0.00014247,2]
[399974704,1766961041238,-410.84290088,0.00014247,2]
[399974706,1766961041248,-1000.0,0.00014247,2]
[399974708,1766961041258,-1000.0,0.00014247,2]
[399974710,1766961041268,-1000.0,0.00014247,2]
[399974712,1766961041279,-1000.0,0.00014247,2]
[399974714,1766961041290,-263.783709,0.00014368,2]
[399974717,1766961041300,-263.783709,0.00014368,2]
[399974719,1766961041310,-263.783709,0.00014368,2]
[399974721,1766961041319,-263.783709,0.00014368,2]
[399974723,1766961041329,-151.0,0.00014368,2]
[399974725,1766961041339,-151.0,0.00014368,2]
[399974727,1766961041349,-1500.0,0.00014368,2]
[399974729,1766961041359,-1500.0,0.00014368,2]
[399974731,1766961041368,-1500.0,0.00014368,2]
[399974733,1766961041378,-1500.0,0.00014368,2]
[399974735,1766961041390,-1500.0,0.00014368,2]
[399974737,1766961041399,-1500.0,0.00014368,2]
[399974739,1766961041409,-1021.33743459,0.00014368,2]
[399974741,1766961041418,-1500.0,0.00014368,2]
[399974743,1766961041428,-1500.0,0.00014368,2]
[399974745,1766961041438,-1500.0,0.00014368,2]
[399974748,1766961041448,-1500.0,0.00014368,2]
[399974750,1766961041457,-1293.7052541,0.00014368,2]
[399974751,1766961041465,-1500.0,0.00014368,2]
[399974753,1766961041475,-1500.0,0.00014368,2]
[399974755,1766961041484,-1500.0,0.00014368,2]
[399974781,1766961041700,-160.0,0.00014489,2]
[399974783,1766961041713,-900.0,0.00014768,2]
[399974785,1766961041724,-500.0,0.00014795,2]
[399974787,1766961041733,-500.0,0.00014795,2]
[399974789,1766961041742,-999.99,0.00014795,2]
[399974791,1766961041752,-912.96459635,0.00014795,2]
[399974793,1766961041762,-1500.0,0.00014795,2]
[399974795,1766961041770,-1500.0,0.00014795,2]
[399974797,1766961041779,-1500.0,0.00014795,2]
[399974799,1766961041788,-1500.0,0.00014795,2]
[399974801,1766961041798,-1501.02108075,0.00014795,2]
[399974803,1766961041807,-1500.0,0.00014795,2]
[399974805,1766961041816,-1500.0,0.00014795,2]
[399974807,1766961041825,-1500.0,0.00014795,2]
[399974809,1766961041834,-1500.0,0.00014795,2]
[399974812,1766961041843,-1500.0,0.00014795,2]
[399974813,1766961041853,-1500.0,0.00014795,2]
[399974815,1766961041862,-1500.0,0.00014795,2]
[399974818,1766961041871,-1500.0,0.00014795,2]
[399974820,1766961041881,-1500.0,0.00014795,2]
[399974822,1766961041890,-1500.0,0.00014795,2]
[399974824,1766961041899,-1516.26229234,0.00014795,2]
[399974825,1766961041908,-1500.0,0.00014795,2]
[399974827,1766961041917,-1103.22724108,0.00014795,2]
[399974829,1766961041926,-632.30285891,0.00014795,2]
[399974831,1766961041935,-285.72893851,0.00014795,2]
[399974833,1766961041945,-1500.0,0.00014795,2]
[399974835,1766961041954,-1500.0,0.00014795,2]
[399974837,1766961041963,-1500.0,0.00014795,2]
[399974839,1766961041972,-263.783709,0.00014795,2]
[399974841,1766961041981,-263.783709,0.00014795,2]
[399974843,1766961041990,-263.783709,0.00014795,2]
[399974846,1766961041999,-263.783709,0.00014795,2]
[399974847,1766961042008,-151.0,0.00014795,2]
[399974850,1766961042017,-155.658401,0.00014795,2]
[399974851,1766961042026,-174.80805383,0.00014916,2]
[399974853,1766961042036,-500.0,0.00014916,2]
[399974855,1766961042045,-2000.0,0.00014916,2]
[399974857,1766961042055,-1062.98262435,0.00014916,2]
[399974860,1766961042064,-2000.0,0.00014916,2]
[399974862,1766961042073,-2000.0,0.00014916,2]
[399974863,1766961042083,-2000.0,0.00014916,2]
[399974865,1766961042091,-2000.0,0.00014916,2]
[399974867,1766961042100,-2000.0,0.00014916,2]
[399974870,1766961042111,-2000.0,0.00014916,2]
[399974871,1766961042120,-260.0,0.00015037,2]
[399974873,1766961042129,-177.0,0.00015272,2]
[399974876,1766961042139,-900.0,0.00015316,2]
[399974878,1766961042147,-151.0,0.00015342,2]
[399974879,1766961042157,-500.93999528,0.00015342,2]
[399974882,1766961042166,-1500.71052117,0.00015342,2]
[399974884,1766961042176,-203.99114667,0.00015342,2]
[399974886,1766961042185,-2000.76422099,0.00015342,2]
[399974888,1766961042194,-1502.03362733,0.00015342,2]
[399974890,1766961042203,-500.0,0.00015342,2]
[399974892,1766961042212,-795.17970332,0.00015342,2]
[399974894,1766961042221,-2128.34758048,0.00015342,2]
[399974896,1766961042230,-1190.98115429,0.00015342,2]
[399974898,1766961042239,-289.10920786,0.00015342,2]
[399974900,1766961042248,-601.9114542,0.00015342,2]
[399974902,1766961042259,-1500.0,0.00015342,2]
[399974904,1766961042268,-2000.0,0.00015342,2]
[399974906,1766961042277,-263.783709,0.00015464,2]
[399974908,1766961042286,-263.783709,0.00015464,2]
[399974910,1766961042294,-263.783709,0.00015464,2]
[399974912,1766961042303,-263.783709,0.00015464,2]
[399974914,1766961042311,-500.0,0.00015464,2]
[399974916,1766961042320,-1000.0,0.00015464,2]
[399974918,1766961042329,-1000.0,0.00015464,2]
[399974920,1766961042338,-500.0,0.00015464,2]
[399974922,1766961042347,-360.0,0.00015585,2]
[399974924,1766961042355,-640.87800554,0.00015639,2]
[399974926,1766961042364,-528.08,0.00016865,3]
[399974928,1766961042373,-264.04,0.00016865,3]
[399974930,1766961042382,-792.12,0.00016865,3]
[399974932,1766961042393,-204.0,0.00017272,2]
[399974934,1766961042402,-168.3888056,0.00017677,2]
[399974935,1766961042411,-461.67526834,0.00017677,2]
[399974936,1766961042420,-500.0,0.00017808,2]
[399974937,1766961042428,-500.0,0.00017945,2]
[399974938,1766961042437,-500.0,0.00018082,2]
[399974939,1766961042446,-500.0,0.00018219,2]
[399974940,1766961042455,-174.61919141,0.00018225,2]
[399974941,1766961042464,-478.75725327,0.00018225,2]
[399974942,1766961042473,-1056.16,0.00018235,3]
[399974943,1766961042481,-528.08,0.00018235,3]
[399974944,1766961042490,-151.0,0.000183,2]
[399974945,1766961042499,-500.0,0.00018356,2]
[399974946,1766961042508,-2297.70390823,0.00018462,2]
[399974947,1766961042517,-337.947418,0.00018481,2]
[399974948,1766961042526,-844.3237274,0.00018481,2]
[399974949,1766961042535,-500.0,0.00018493,2]
[399974950,1766961042544,-263.783709,0.00018601,2]
[399974951,1766961042553,-263.783709,0.00018601,2]
[399974952,1766961042562,-263.783709,0.00018601,2]
[399974953,1766961042571,-263.783709,0.00018601,2]
[399974954,1766961042580,-151.0,0.00018601,2]
[399974956,1766961042589,-125007.31498506,0.00018601,2]
[399974958,1766961042603,-8370.30308283,0.00018601,2]
[399974961,1766961042614,-304.127,0.00018601,2]
[399974963,1766961042625,-17051.59321187,0.00018601,2]
[399975098,1766961046044,-10313.11202671,0.00018601,2]
[399975101,1766961046056,-375.50722366,0.00018601,2]
[399975103,1766961046067,-1318.70184405,0.00018601,2]
[399975104,1766961046078,-45797.85780735,0.00018601,2]
[399975105,1766961046103,-4982.51510136,0.00018601,2]
[399975107,1766961046390,-2583.70658444,0.00018601,2]
[399975108,1766961046401,-6791.94900133,0.00018601,2]
[399975109,1766961046412,-25826.29,0.00018601,2]
[399975110,1766961046506,-7231.59063587,0.00018601,2]
[399975111,1766961046517,-709.96952181,0.00018601,2]
[399975112,1766961046625,-225449.03131758,0.00018601,2]
[399975241,1766961253345,1535.7405868,0.00013172,2]
[399975242,1766961253372,3464.2594132,0.00013172,2]
[399975260,1766961313380,2690.31217635,0.00013172,2]
[399975338,1766961502957,3845.43841045,0.00013172,2]
[399975339,1766961502980,1154.56158955,0.00013172,2]
[399975340,1766961526036,2588.80945567,0.00013172,2]
[399975363,1766962026476,534.16028517,0.00013172,2]
[399975365,1766962102631,221.45,0.00028767,120]
[399975428,1766962232323,-500.0,0.00013273,2]
[399975430,1766962232333,-500.0,0.00013273,2]
[399975432,1766962232342,-606.6144975,0.00013273,2]
[399975434,1766962232351,-500.55170221,0.00013273,2]
[399975436,1766962232360,-489.92114348,0.00013273,2]
[399975438,1766962232371,-500.0,0.00013273,2]
[399975440,1766962232380,-500.0,0.00013273,2]
[399975442,1766962232391,-150.0,0.00013273,2]
[399975444,1766962232400,-608.0,0.00013273,2]
[399975446,1766962232409,-300.0,0.00013697,2]
[399975448,1766962232418,-358.19609553,0.00013698,2]
[399975450,1766962232428,-500.0,0.00013698,2]
[399975452,1766962232437,-500.0,0.00013698,2]
[399975454,1766962232446,-500.0,0.00013698,2]
[399975456,1766962232455,-500.0,0.00013698,2]
[399975458,1766962232463,-500.0,0.00013698,2]
[399975460,1766962232472,-500.0,0.00013698,2]
[399975463,1766962232481,-500.0,0.00013698,2]
[399975466,1766962232491,-500.0,0.00013698,2]
[399975469,1766962232499,-500.0,0.00013698,2]
[399975472,1766962232508,-500.0,0.00013698,2]
[399975475,1766962232517,-500.0,0.00013698,2]
[399975477,1766962232527,-500.0,0.00013698,2]
[399975479,1766962232536,-494.27971491,0.00013698,2]
[399975481,1766962232545,-500.0,0.00013698,2]
[399975483,1766962232554,-500.0,0.00013698,2]
[399975485,1766962232564,-500.0,0.00013698,2]
[399975487,1766962232573,-697.99,0.00013698,2]
[399975489,1766962232582,-697.99,0.00013698,2]
[399975491,1766962232591,-697.99,0.00013698,2]
[399975493,1766962232601,-622.81491526,0.00013698,2]
[399975495,1766962232611,-12505.2055626,0.00013699,2]
[399975497,1766962232620,-389.749106,0.00013699,2]
[399975499,1766962232630,-1954.389053,0.00013699,2]
[399975501,1766962232638,-500.0,0.00013699,2]
[399975502,1766962232647,-341.49018675,0.00013699,2]
[399975504,1766962232656,-500.0,0.00013699,2]
[399975506,1766962232665,-500.0,0.00013699,2]
[399975508,1766962232675,-500.0,0.00013699,2]
[399975510,1766962232684,-500.0,0.00013699,2]
[399975512,1766962232694,-500.0,0.00013699,2]
[399975514,1766962232703,-500.0,0.00013699,2]
[399975516,1766962232712,-500.0,0.00013699,2]
[399975518,1766962232721,-500.0,0.00013699,2]
[399975520,1766962232731,-500.0,0.00013699,2]
[399975522,1766962232741,-500.0,0.00013699,2]
[399975524,1766962232750,-500.0,0.00013699,2]
[399975526,1766962232760,-500.0,0.00013699,2]
[399975528,1766962232770,-500.0,0.00013699,2]
[399975530,1766962232779,-500.0,0.00013699,2]
[399975532,1766962232789,-500.0,0.00013699,2]
[399975534,1766962232799,-500.0,0.00013699,2]
[399975536,1766962232808,-500.0,0.00013699,2]
[399975538,1766962232819,-500.0,0.00013699,2]
[399975540,1766962232829,-500.0,0.00013699,2]
[399975542,1766962232838,-500.0,0.00013699,2]
[399975544,1766962232847,-500.0,0.00013699,2]
[399975546,1766962232856,-500.0,0.00013699,2]
[399975548,1766962232866,-500.0,0.00013699,2]
[399975549,1766962232875,-500.0,0.00013699,2]
[399975552,1766962232885,-500.0,0.00013699,2]
[399975553,1766962232895,-500.0,0.00013699,2]
[399975555,1766962232904,-500.69760371,0.00013699,2]
[399975557,1766962232914,-500.0,0.00013699,2]
[399975560,1766962232923,-500.0,0.00013699,2]
[399975561,1766962232934,-500.0,0.00013699,2]
[399975564,1766962232943,-1000.0,0.00013821,2]
[399975565,1766962232952,-1000.0,0.00013821,2]
[399975567,1766962232961,-697.99,0.00014246,2]
[399975569,1766962232970,-697.99,0.00014246,2]
[399975571,1766962232979,-1000.0,0.00014247,2]
[399975573,1766962232989,-462.5984453,0.00014247,2]
[399975575,1766962232998,-505.08020609,0.00014247,2]
[399975577,1766962233008,-1086.16455133,0.00014247,2]
[399975579,1766962233017,-1000.0,0.00014247,2]
[399975581,1766962233026,-963.1498413,0.00014247,2]
[399975583,1766962233036,-1000.0,0.00014247,2]
[399975585,1766962233046,-1000.0,0.00014247,2]
[399975587,1766962233055,-1133.31530987,0.00014247,2]